Workbook

Sheet Taul1
A1: K-means-demo spreadsheet | F1: Vesa Ollikainen | O1: In the example there are 3 variables, 20 observations and 2 clusters.
A2: Scaling information | O2: You can modify the contents of the green cells.
A3: =AVERAGE(A$7:A$44) -> 41.84210526 | B3: =AVERAGE(B7:B44) -> 3362.105263 | C3: 6.263157895 | D3: Mean | O3: Press green arrow for the next iteration.
A4: =_xlfn.STDEV.S(A$7:A$44) -> 16.65086971 | B4: =_xlfn.STDEV.S(B$7:B$44) -> 1312.908472 | C4: 2.281376418 | D4: Standard deviation
X5: Original cluster centerpoints
A6: Data | D6: Standardized values | M6: Distances | X6: OLD | Y6: Age | Z6: Income | AA6: Health
A7: Age | B7: Income | C7: Health | D7: Age | E7: Income | F7: Health | M7: C1 | N7: C2 | O7: Cluster | X7: C1 | Y7: 33.75 | Z7: 2665 | AA7: 7.583333333
A8: 50 | B8: 2710 | C8: 7 | D8: =(A8-A$3)/A$4 -> 0.4899380561 | E8: =(B8-B$3)/B$4 -> -0.4966875279 | F8: 0.3229813806 | G8: =D8-Y$20 -> 0.9759249989 | H8: =E8-Z$20 -> 0.03427504733 | I8: =F8-AA$20 -> -0.255693593 | J8: =D8-Y$21 -> -0.3431824172 | K8: =E8-Z$21 -> -1.406909085 | L8: =F8-AA$21 -> 1.314995621 | M8: =SQRT(G8*G8+H8*H8+I8*I8) -> 1.009447173 | N8: =SQRT(J8*J8+K8*K8+L8*L8) -> 1.956113706 | O8: =IF(M8<N8,"C1","C2") -> C1 | P8: =IF($O8="C1",D8,"") -> 0.4899380561 | Q8: =IF($O8="C1",E8,"") -> -0.4966875279 | R8: =IF($O8="C1",F8,"") -> 0.3229813806 | S8: =IF($O8="C2",D8,"") ->  | T8: =IF($O8="C2",E8,"") ->  | X8: C2 | Y8: 55.71428571 | Z8: 4557.142857 | AA8: 4
A9: 47 | B9: 4230 | C9: 6 | D9: =(A9-A$3)/A$4 -> 0.3097672871 | E9: 0.661047404 | F9: -0.1153504931 | G9: 0.7957542299 | H9: 1.192009979 | I9: -0.6940254666 | J9: -0.5233531862 | K9: -0.2491741536 | L9: 0.8766637473 | M9: =SQRT(G9*G9+H9*H9+I9*I9) -> 1.592414498 | N9: =SQRT(J9*J9+K9*K9+L9*L9) -> 1.050964149 | O9: =IF(M9<N9,"C1","C2") -> C2 | P9: =IF($O9="C1",D9,"") ->  | Q9: =IF($O9="C1",E9,"") ->  | R9: =IF($O9="C1",F9,"") ->  | S9: =IF($O9="C2",D9,"") -> 0.3097672871 | T9: =IF($O9="C2",E9,"") -> 0.661047404 | U9: =IF($O9="C2",F9,"") -> -0.1153504931
A10: 62 | B10: 5160 | C10: 4 | D10: 1.210621132 | E10: 1.369398382 | F10: -0.9920142404 | G10: 1.696608075 | H10: 1.900360957 | I10: -1.570689214 | J10: 0.3775006589 | K10: 0.4591768245 | L10: 0 | M10: 2.992810608 | N10: 0.5944325896 | O10: C2 | S10: 1.210621132 | T10: 1.369398382 | U10: -0.9920142404
A11: 40 | B11: 2640 | C11: 7 | D11: -0.110631174 | E11: -0.5500042682 | F11: 0.3229813806 | G11: 0.3753557688 | H11: -0.01904169296 | I11: -0.255693593 | J11: -0.9437516473 | K11: -1.460225826 | L11: 1.314995621 | M11: 0.4545698546 | N11: 2.179940393 | O11: C1 | P11: -0.110631174 | Q11: -0.5500042682 | R11: 0.3229813806
A12: 24 | B12: 1830 | C12: 9 | D12: -1.071541942 | E12: -1.16695512 | F12: 1.199645128 | G12: -0.5855549993 | H12: -0.6359925448 | I12: 0.6209701543 | J12: -1.904662415 | K12: -2.077176678 | L12: 2.191659368 | M12: 1.064408337 | N12: 3.570122218 | O12: C1 | P12: -1.071541942 | Q12: -1.16695512 | R12: 1.199645128 | X12: NEW | Y12: Age | Z12: Income | AA12: Health
A13: 36 | B13: 2540 | C13: 8 | D13: -0.350858866 | E13: -0.62617104 | F13: 0.7613132542 | G13: 0.1351280768 | H13: -0.09520846479 | I13: 0.1826382807 | J13: -1.183979339 | K13: -1.536392598 | L13: 1.753327495 | M13: 0.2463351182 | N13: 2.614663763 | O13: C1 | P13: -0.350858866 | Q13: -0.62617104 | R13: 0.7613132542 | X13: C1 | Y13: =Y25*A$4+A$3 -> 33.75 | Z13: =Z25*B$4+B$3 -> 2665 | AA13: 7.583333333
A14: 70 | B14: 3120 | C14: 5 | D14: 1.691076516 | E14: -0.1844037634 | F14: -0.5536823667 | G14: 2.177063459 | H14: 0.3465588118 | I14: -1.13235734 | J14: 0.857956043 | K14: -1.094625321 | L14: 0.4383318737 | M14: 2.478294063 | N14: 1.45822769 | O14: C2 | S14: 1.691076516 | T14: -0.1844037634 | U14: -0.5536823667 | X14: C2 | Y14: =Y26*A$4+A$3 -> 55.71428571 | Z14: =Z26*B$4+B$3 -> 4557.142857 | AA14: 4
A15: 18 | B15: 630 | C15: 8 | D15: -1.43188348 | E15: -2.080956382 | F15: 0.7613132542 | G15: -0.9458965374 | H15: -1.549993807 | I15: 0.1826382807 | J15: -2.265003953 | K15: -2.99117794 | L15: 1.753327495 | M15: 1.82498159 | N15: 4.141442464 | O15: C1 | P15: -1.43188348 | Q15: -2.080956382 | R15: 0.7613132542
A16: 35 | B16: 3800 | C16: 8 | D16: -0.410915789 | E16: 0.3335302851 | F16: 0.7613132542 | G16: 0.07507115376 | H16: 0.8644928603 | I16: 0.1826382807 | J16: -1.244036262 | K16: -0.5766912725 | L16: 1.753327495 | M16: 0.886758324 | N16: 2.225838347 | O16: C1 | P16: -0.410915789 | Q16: 0.3335302851 | R16: 0.7613132542 | Y16: Status | Z16: =IF(AND(Y7=Y13,Y8=Y14,Z7=Z13,Z8=Z14,AA7=AA13,AA8=AA14),"FINISHED!","Go on. Iterate!") -> FINISHED!
A17: 24 | B17: 1950 | C17: 10 | D17: -1.071541942 | E17: -1.075554994 | F17: 1.637977002 | G17: -0.5855549993 | H17: -0.5445924186 | I17: 1.059302028 | J17: -1.904662415 | K17: -1.985776551 | L17: 2.629991242 | M17: 1.327243891 | N17: 3.806297592 | O17: C1 | P17: -1.071541942 | Q17: -1.075554994 | R17: 1.637977002
A18: 24 | B18: 2480 | C18: 7 | D18: -1.071541942 | E18: -0.6718711031 | F18: 0.3229813806 | G18: -0.5855549993 | H18: -0.1409085279 | I18: -0.255693593 | J18: -1.904662415 | K18: -1.582092661 | L18: 1.314995621 | M18: 0.6543004539 | N18: 2.80356373 | O18: C1 | P18: -1.071541942 | Q18: -0.6718711031 | R18: 0.3229813806 | X18: Scaled cluster centerpoints
A19: 27 | B19: 3120 | C19: 6 | D19: -0.8913711731 | E19: -0.1844037634 | F19: -0.1153504931 | G19: -0.4053842303 | H19: 0.3465588118 | I19: -0.6940254666 | J19: -1.724491646 | K19: -1.094625321 | L19: 0.8766637473 | M19: 0.8752775175 | N19: 2.222749504 | O19: C1 | P19: -0.8913711731 | Q19: -0.1844037634 | R19: -0.1153504931 | X19: OLD | Y19: Age | Z19: Income | AA19: Health
A20: 63 | B20: 2990 | C20: 9 | D20: 1.270678055 | E20: -0.2834205668 | F20: 1.199645128 | G20: 1.756664998 | H20: 0.2475420085 | I20: 0.6209701543 | J20: 0.4375575819 | K20: -1.193642124 | L20: 2.191659368 | M20: 1.879561889 | N20: 2.533694722 | O20: C1 | P20: 1.270678055 | Q20: -0.2834205668 | R20: 1.199645128 | X20: C1 | Y20: =(Y7-A$3)/A$4 -> -0.4859869428 | Z20: =(Z7-B$3)/B$4 -> -0.5309625752 | AA20: 0.5786749736
A21: 29 | B21: 4000 | C21: 7 | D21: -0.7712573271 | E21: 0.4858638288 | F21: 0.3229813806 | G21: -0.2852703843 | H21: 1.016826404 | I21: -0.255693593 | J21: -1.6043778 | K21: -0.4243577288 | L21: 1.314995621 | M21: 1.086597599 | N21: 2.117385438 | O21: C1 | P21: -0.7712573271 | Q21: 0.4858638288 | R21: 0.3229813806 | X21: C2 | Y21: =(Y8-A$3)/A$4 -> 0.8331204733 | Z21: =(Z8-B$3)/B$4 -> 0.9102215575 | AA21: -0.9920142404
A22: 35 | B22: 3290 | C22: 5 | D22: -0.410915789 | E22: -0.05492025127 | F22: -0.5536823667 | G22: 0.07507115376 | H22: 0.476042324 | I22: -1.13235734 | J22: -1.244036262 | K22: -0.9651418088 | L22: 0.4383318737 | M22: 1.230644188 | N22: 1.6343989 | O22: C1 | P22: -0.410915789 | Q22: -0.05492025127 | R22: -0.5536823667
A23: 55 | B23: 4740 | C23: 5 | D23: 0.7902226712 | E23: 1.04949794 | F23: -0.5536823667 | G23: 1.276209614 | H23: 1.580460516 | I23: -1.13235734 | J23: -0.04289780215 | K23: 0.1392763828 | L23: 0.4383318737 | M23: 2.325682602 | N23: 0.4619231145 | O23: C2 | S23: 0.7902226712 | T23: 1.04949794 | U23: -0.5536823667
A24: 62 | B24: 6000 | C24: 3 | D24: 1.210621132 | E24: =(B24-B$3)/B$4 -> 2.009199265 | F24: =(C24-C$3)/C$4 -> -1.430346114 | G24: 1.696608075 | H24: 2.540161841 | I24: -2.009021088 | J24: 0.3775006589 | K24: 1.098977708 | L24: -0.4383318737 | M24: 3.656099953 | N24: 1.241931392 | O24: C2 | S24: 1.210621132 | T24: 2.009199265 | U24: -1.430346114 | X24: NEW | Y24: Age | Z24: Income | AA24: Health
A25: 30 | B25: 3530 | C25: 1 | D25: -0.711200404 | E25: 0.1278800011 | F25: -2.307009861 | G25: -0.2252134613 | H25: 0.6588425764 | I25: -2.885684835 | J25: -1.544320877 | K25: -0.7823415564 | L25: -1.314995621 | M25: 2.968496523 | N25: 2.173982237 | O25: C2 | S25: -0.711200404 | T25: 0.1278800011 | U25: -2.307009861 | X25: C1 | Y25: =AVERAGE(P:P) -> -0.4859869428 | Z25: =AVERAGE(Q:Q) -> -0.5309625752 | AA25: =AVERAGE(R:R) -> 0.5786749736
A26: 64 | B26: 5120 | C26: 4 | D26: 1.330734978 | E26: 1.338931673 | F26: -0.9920142404 | G26: 1.816721921 | H26: 1.869894249 | I26: -1.570689214 | J26: 0.4976145049 | K26: 0.4287101158 | L26: 0 | M26: 3.043689808 | N26: 0.6568200354 | O26: C2 | S26: 1.330734978 | T26: 1.338931673 | U26: -0.9920142404 | X26: C2 | Y26: =AVERAGE(S:S) -> 0.8331204733 | Z26: =AVERAGE(T:T) -> 0.9102215575 | AA26: =AVERAGE(U:U) -> -0.9920142404

Sheet Taul2

Sheet Taul3
